fUSD/lending_fUSD_20250421
["ID","MTS","AMOUNT","RATE_DAILY","PERIOD"]
[358542009,1745243441987,-35607.0,0.000347,2]
[358542011,1745243441996,-455.2987908,0.00035,30]
[358542013,1745243442005,-6026.21523527,0.00035,2]
[358542015,1745243442014,-2000.0,0.00035,4]
[358542017,1745243442023,-357.01,0.00035068,2]
[358542019,1745243442033,-1140.43041176,0.00035471,5]
[358542021,1745243442042,-1971.56,0.00035552,2]
[358542023,1745243442052,-4994.31,0.000356,14]
[358542025,1745243442061,-150.0,0.00035616,5]
[358542027,1745243442070,-5563.0,0.000357,3]
[358542029,1745243442079,-207.4,0.00036137,2]
[358542031,1745243442089,-171.1,0.00036164,2]
[358542044,1745243442203,-5563.0,0.000366,5]
[358542046,1745243442213,-150.0,0.00036983,3]
[358542048,1745243442222,-150.0,0.00036983,3]
[358542050,1745243442231,-150.0,0.00036983,3]
[358542052,1745243442240,-150.0,0.00036983,3]
[358542054,1745243442249,-171.20058739,0.000372,120]
[358542056,1745243442259,-3162.0,0.00037377,3]
[358542058,1745243442269,-153.0,0.00037416,5]
[358542060,1745243442279,-215.0738,0.00037506,2]
[358542062,1745243442288,-206.86179215,0.0003759,2]
[358542064,1745243442297,-151.81,0.00037671,2]
[358542066,1745243442307,-1971.56,0.00037816,2]
[358542068,1745243442316,-2000.0,0.00038,4]
[358542070,1745243442326,-4944.38033908,0.00038,14]
[358542072,1745243442335,-160.0,0.00038356,5]
[358542074,1745243442344,-223.0315306,0.00038875,2]
[358542076,1745243442354,-250.0,0.00039,5]
[358542078,1745243442363,-948.0,0.00039483,2]
[358542080,1745243442372,-500.0,0.00039726,15]
[358542082,1745243442381,-500.0,0.00039726,15]
[358542084,1745243442390,-500.0,0.00039726,15]
[358542086,1745243442400,-500.0,0.00039726,15]
[358542088,1745243442409,-500.0,0.00039726,15]
[358542090,1745243442418,-500.0,0.00039726,15]
[358542092,1745243442426,-500.0,0.00039726,15]
[358542094,1745243442436,-500.0,0.00039726,15]
[358542096,1745243442445,-500.0,0.00039726,15]
[358542098,1745243442455,-500.0,0.00039726,15]
[358542100,1745243442464,-500.0,0.00039726,15]
[358542102,1745243442474,-500.0,0.00039726,15]
[358542104,1745243442483,-500.0,0.00039726,15]
[358542106,1745243442492,-275.03957497,0.00039726,15]
[358542108,1745243442501,-500.0,0.00039726,15]
[358542110,1745243442511,-500.0,0.00039726,15]
[358542112,1745243442520,-500.0,0.00039726,15]
[358542114,1745243442530,-500.0,0.00039726,15]
[358542116,1745243442539,-461.94894326,0.00039726,15]
[358542118,1745243442549,-500.0,0.00039726,15]
[358542120,1745243442558,-500.0,0.00039726,15]
[358542122,1745243442567,-500.0,0.00039726,15]
[358542124,1745243442576,-500.0,0.00039726,15]
[358542125,1745243442584,-295.50462085,0.00039726,15]
[358542128,1745243442594,-500.0,0.00039726,15]
[358542130,1745243442604,-500.0,0.00039726,15]
[358542132,1745243442614,-500.0,0.00039726,15]
[358542134,1745243442623,-440.0,0.00039753,2]
[358542135,1745243442632,-4994.31,0.000398,14]
[358542137,1745243442642,-8960.57881409,0.00039999,7]
[358542140,1745243442651,-301.0,0.0004,2]
[358542142,1745243442661,-3649.17117442,0.0004,10]
[358542144,1745243442671,-740.16470152,0.0004,30]
[358542146,1745243442681,-182.56,0.0004,30]
[358542148,1745243442690,-542.25,0.0004,30]
[358542150,1745243442699,-1971.56,0.0004008,2]
[358542151,1745243442709,-231.28369723,0.00040244,2]
[358542153,1745243442718,-531.01682509,0.00040271,5]
[358542155,1745243442727,-1020.94346662,0.00040371,5]
[358542157,1745243442736,-171.1,0.00040548,2]
[358542159,1745243442746,-4427.0,0.000409,5]
[358542161,1745243442755,-2000.0,0.00041,4]
[358542163,1745243442765,-150.5,0.0004107,120]
[358542165,1745243442774,-150.5,0.0004108,120]
[358542167,1745243442783,-230.15,0.00041086,120]
[358542170,1745243442793,-150.5,0.0004109,120]
[358542172,1745243442803,-204.83,0.00041095,120]
[358542174,1745243442812,-500.0,0.00041095,120]
[358542176,1745243442821,-500.0,0.00041095,120]
[358542177,1745243442830,-500.0,0.00041095,120]
[358542179,1745243442839,-500.0,0.00041095,120]
[358542182,1745243442849,-500.0,0.00041095,120]
[358542184,1745243442859,-500.0,0.00041095,120]
[358542186,1745243442868,-500.0,0.00041095,120]
[358542187,1745243442877,-500.0,0.00041095,120]
[358542189,1745243442887,-500.0,0.00041095,120]
[358542191,1745243442896,-500.0,0.00041095,120]
[358542193,1745243442905,-500.0,0.00041095,120]
[358542195,1745243442914,-500.0,0.00041095,120]
[358542197,1745243442923,-500.0,0.00041095,120]
[358542199,1745243442932,-500.0,0.00041095,120]
[358542201,1745243442941,-500.0,0.00041095,120]
[358542203,1745243442956,-500.0,0.00041095,120]
[358542205,1745243442966,-500.0,0.00041095,120]
[358542207,1745243442975,-500.0,0.00041095,120]
[358542209,1745243442984,-500.0,0.00041095,120]
[358542211,1745243442994,-500.0,0.00041095,120]
[358542213,1745243443003,-500.0,0.00041095,120]
[358542215,1745243443013,-500.0,0.00041095,120]
[358542218,1745243443022,-306.53445325,0.00041096,10]
[358542221,1745243443032,-151.81,0.00041096,2]
[358542223,1745243443042,-170.0,0.00041096,10]
[358542225,1745243443053,-239.84119403,0.00041613,2]
[358542227,1745243443062,-275.18,0.00041619,30]
[358542229,1745243443071,-310.0,0.00042,5]
[358542231,1745243443081,-2787.148,0.000422,63]
[358542233,1745243443090,-1971.56,0.00042344,2]
[358542235,1745243443099,-204.83,0.00042465,120]
[358542237,1745243443109,-248.71531821,0.00042982,2]
[358542239,1745243443118,-67918.41339671,0.00042993,2]
[358542242,1745243443128,-62486.90427757,0.00043,10]
[358542244,1745243443137,-150.0,0.00043065,2]
[358542247,1745243443147,-150.0,0.00043081,2]
[358542249,1745243443157,-4994.31,0.000436,14]
[358542252,1745243443167,-221.85598252,0.00043692,14]
[358542254,1745243443176,-150.0,0.00043748,2]
[358542256,1745243443185,-150.0,0.00043819,2]
[358542258,1745243443195,-1500.0,0.00043835,120]
[358542260,1745243443206,-1500.0,0.00043835,120]
[358542262,1745243443216,-1500.0,0.00043835,120]
[358542263,1745243443226,-1500.0,0.00043835,120]
[358542266,1745243443235,-1500.0,0.00043835,120]
[358542268,1745243443244,-1500.0,0.00043835,120]
[358542271,1745243443254,-1500.0,0.00043835,120]
[358542274,1745243443264,-1500.0,0.00043835,120]
[358542276,1745243443273,-1193.20391534,0.00043835,120]
[358542277,1745243443283,-204.83,0.00043835,120]
[358542279,1745243443292,-180.0,0.00043836,10]
[358542281,1745243443301,-150.0,0.00043836,10]
[358542284,1745243443310,-150.0,0.00043953,2]
[358542286,1745243443319,-1177.6169475,0.00044,2]
[358542289,1745243443329,-2000.0,0.00044,4]
[358542292,1745243443338,-150.0,0.00044159,2]
[358542295,1745243443347,-798.79,0.00044199,30]
[358542298,1745243443357,-150.0,0.00044223,14]
[358542300,1745243443365,-150.0,0.00044258,2]
[358542302,1745243443374,-150.0,0.00044297,2]
[358542304,1745243443383,-150.0,0.00044328,2]
[358542306,1745243443392,-1000.0,0.0004434,14]
[358542308,1745243443400,-257.91778498,0.00044351,2]
[358542310,1745243443409,-150.0,0.00044351,2]
[358542312,1745243443418,-150.0,0.00044356,2]
[358542314,1745243443427,-152.0,0.00044384,10]
[358542316,1745243443436,-166.66785936,0.0004439,120]
[358542318,1745243443444,-3600.0,0.000444,2]
[358542320,1745243443453,-150.0,0.00044417,14]
[358542322,1745243443462,-150.0,0.00044422,2]
[358542324,1745243443471,-150.0,0.00044486,2]
[358542325,1745243443480,-150.0,0.00044504,2]
[358542326,1745243443489,-150.0,0.00044523,2]
[358542327,1745243443499,-150.0,0.00044532,2]
[358542328,1745243443508,-150.0,0.0004458,2]
[358542329,1745243443517,-150.0,0.00044602,2]
[358542330,1745243443527,-1971.56,0.00044608,2]
[358542331,1745243443536,-17679.96,0.00044611,2]
[358542332,1745243443546,-180.01714351,0.00044651,2]
[358542333,1745243443555,-150.0,0.0004467,2]
[358542334,1745243443564,-6198.0,0.00044754,5]
[358542335,1745243443573,-13013.39438139,0.000449,7]
[358542336,1745243443582,-1220.63192683,0.000449,120]
[358542338,1745243443592,-13701.835,0.00044918,120]
[358542340,1745243443601,-13701.836,0.00044918,120]
[358542342,1745243443610,-13701.835,0.00044918,120]
[358542344,1745243443619,-13701.835,0.00044918,120]
[358542346,1745243443628,-13701.836,0.00044918,120]
[358542347,1745243443637,-171.1,0.00044932,2]
[358542349,1745243443645,-303.25678518,0.00044932,10]
[358542351,1745243443654,-447.68,0.00044932,30]
[358542364,1745243443762,-218.01,0.0004496,120]
[358542366,1745243443771,-150.5,0.0004497,120]
[358542368,1745243443783,-354.34630076,0.00044973,30]
[358542370,1745243443803,-183218.01791378,0.00045,2]
[358542372,1745243443824,-151.0,0.00045,120]
[358542373,1745243443845,-32407.13791208,0.00045,30]
[358542375,1745243443866,-311.49635096,0.00045,30]
[358542377,1745243443886,-1000.14521139,0.00045,2]
[358542379,1745243443906,-169.0,0.00045,90]
[358542382,1745243443928,-150.0,0.00045029,2]
[358542384,1745243443951,-160.36743009,0.0004515,14]
[358542387,1745243443971,-204.83,0.00045205,120]
[358542390,1745243443992,-150.0,0.00045205,2]
[358542394,1745243444010,-150.0,0.00045205,2]
[358542396,1745243444019,-869.72,0.00045218,30]
[358542400,1745243444028,-150.0,0.00045229,2]
[358542402,1745243444038,-150.0,0.0004525,2]
[358542404,1745243444047,-150.0,0.00045254,2]
[358542405,1745243444056,-150.0,0.00045302,2]
[358542407,1745243444066,-150.0,0.00045349,2]
[358542408,1745243444075,-150.0,0.00045412,14]
[358542409,1745243444084,-150.0,0.00045418,14]
[358542410,1745243444094,-1332.0,0.00045424,2]
[358542411,1745243444104,-2055.0,0.00045424,2]
[358542412,1745243444114,-916.0,0.00045424,2]
[358542414,1745243444124,-795.0,0.00045424,2]
[358542416,1745243444134,-1283.0,0.00045424,2]
[358542418,1745243444144,-928.981,0.00045424,2]
[358542420,1745243444154,-546.0,0.00045424,2]
[358542422,1745243444163,-1442.0,0.00045424,2]
[358542424,1745243444172,-644.355,0.00045424,2]
[358542426,1745243444181,-4161.0,0.00045424,2]
[358542428,1745243444191,-250.0,0.00045424,2]
[358542430,1745243444200,-868.0,0.00045424,2]
[358542432,1745243444210,-269.892,0.00045424,2]
[358542434,1745243444219,-160.172,0.00045424,2]
[358542437,1745243444229,-2142.0,0.00045424,2]
[358542438,1745243444238,-3978.0,0.00045424,2]
[358542440,1745243444247,-1129.0,0.00045424,2]
[358542442,1745243444257,-176.8979223,0.00045479,2]
[358542444,1745243444267,-150.0,0.00045484,2]
[358542446,1745243444277,-150.0,0.00045536,2]
[358542447,1745243444288,-150.0,0.00045561,2]
[358542448,1745243444297,-40023.29430336,0.000456,4]
[358542449,1745243444307,-150.0,0.00045616,2]
[358542450,1745243444316,-150.0,0.00045616,2]
[358542451,1745243444326,-150.0,0.00045628,2]
[358542452,1745243444336,-169.0,0.00045685,90]
[358542453,1745243444345,-150.0,0.00045692,2]
[358542454,1745243444355,-267.46074303,0.0004572,2]
[358542455,1745243444364,-150.0,0.00045753,2]
[358542456,1745243444373,-150.0,0.00045766,2]
[358542458,1745243444383,-150.0,0.00045788,2]
[358542460,1745243444392,-150.0,0.00045802,2]
[358542462,1745243444401,-156.64094308,0.00045808,2]
[358542464,1745243444410,-23443.61,0.00045862,15]
[358542466,1745243444419,-274646.91,0.00045862,15]
[358542468,1745243444428,-69204.75,0.00045862,15]
[358542470,1745243444437,-1269.98,0.00045862,15]
[358542472,1745243444446,-35704.66,0.00045862,15]
[358542474,1745243444456,-11732.78,0.00045862,15]
[358542476,1745243444465,-4707.41,0.00045862,15]
[358542478,1745243444474,-25690.84,0.00045862,15]
[358542480,1745243444483,-150.0,0.00045873,2]
[358542482,1745243444492,-30000.00000099,0.00045885,120]
[358542484,1745243444501,-150.0,0.00045934,2]
[358542486,1745243444511,-150.0,0.0004595,2]
[358542488,1745243444520,-500.0,0.00045973,120]
[358542490,1745243444530,-231.02901544,0.00045973,120]
[358542492,1745243444539,-500.0,0.00045973,120]
[358542494,1745243444547,-500.0,0.00045973,120]
[358542497,1745243444561,-500.0,0.00045973,120]
[358542499,1745243444579,-500.0,0.00045973,120]
[358542502,1745243444595,-156.44,0.00045984,15]
[358542505,1745243444613,-156.44,0.00045984,15]
[358542508,1745243444628,-284701.651167,0.00045986,2]
[358542511,1745243444645,-20553.5370086,0.00045986,2]
[358542514,1745243444662,-196.84685729,0.0004599,2]
[358542516,1745243444679,-259.23856058,0.00046,120]
[358542519,1745243444696,-500.0,0.00046,120]
[358542522,1745243444714,-500.0,0.00046,120]
[358542525,1745243444732,-500.0,0.00046,120]
[358542528,1745243444749,-500.0,0.00046,120]
[358542530,1745243444762,-500.0,0.00046,120]
[358542533,1745243444780,-500.0,0.00046,120]
[358542535,1745243444792,-500.0,0.00046,120]
[358542538,1745243444809,-500.0,0.00046,120]
[358542541,1745243444823,-500.0,0.00046,120]
[358542543,1745243444836,-500.0,0.00046,120]
[358542545,1745243444850,-500.0,0.00046,120]
[358542548,1745243444864,-500.0,0.00046,120]
[358542550,1745243444878,-500.0,0.00046,120]
[358542553,1745243444895,-500.0,0.00046,120]
[358542556,1745243444910,-500.0,0.00046,120]
[358542558,1745243444925,-500.0,0.00046,120]
[358542561,1745243444940,-500.0,0.00046,120]
[358542563,1745243444957,-500.0,0.00046,120]
[358542566,1745243444971,-500.0,0.00046,120]
[358542568,1745243444986,-500.0,0.00046,120]
[358542571,1745243445000,-500.0,0.00046,120]
[358542573,1745243445015,-500.0,0.00046,120]
[358542576,1745243445030,-500.0,0.00046,120]
[358542578,1745243445045,-500.0,0.00046,120]
[358542581,1745243445060,-1123.93,0.00046,30]
[358542583,1745243445074,-556.469,0.00046,120]
[358542586,1745243445089,-173.11238741,0.00046,60]
[358542588,1745243445104,-400.0,0.00046,2]
[358542591,1745243445118,-200.0,0.00046,7]
[358542593,1745243445144,-4994.31,0.00046,14]
[358542596,1745243445171,-199.95300181,0.00046027,2]
[358542598,1745243445200,-500.0,0.00046027,2]
[358542600,1745243445238,-500.0,0.00046027,2]
[358542602,1745243445268,-500.0,0.00046027,2]
[358542605,1745243445297,-500.0,0.00046027,2]
[358542607,1745243445325,-151.58885993,0.00046027,2]
[358542610,1745243445340,-150.0,0.00046027,2]
[358542612,1745243445355,-151.44715562,0.00046027,2]
[358542615,1745243445370,-500.0,0.00046027,2]
[358542617,1745243445385,-150.01402087,0.00046027,2]
[358542620,1745243445399,-2077.0,0.00046027,2]
[358542623,1745243445414,-150.0,0.00046027,2]
[358542625,1745243445428,-556.0,0.00046027,2]
[358542628,1745243445443,-500.0,0.00046027,2]
[358542630,1745243445457,-150.0,0.00046027,2]
[358542633,1745243445471,-200.0,0.00046027,2]
[358542635,1745243445485,-500.0,0.00046027,2]
[358542638,1745243445499,-500.0,0.00046027,2]
[358542640,1745243445513,-150.0,0.00046027,2]
[358542643,1745243445527,-150.0,0.00046027,2]
[358542645,1745243445542,-150.0,0.00046027,2]
[358542648,1745243445556,-150.92758389,0.00046027,2]
[358542650,1745243445569,-150.0,0.00046027,2]
[358542653,1745243445585,-150.0,0.00046027,2]
[358542655,1745243445598,-150.0,0.00046027,2]
[358542658,1745243445613,-500.0,0.00046027,2]
[358542660,1745243445627,-150.0,0.00046122,2]
[358542663,1745243445641,-150.0,0.00046162,2]
[358542665,1745243445655,-150.0,0.00046175,2]
[358542668,1745243445669,-150.0,0.00046177,2]
[358542670,1745243445683,-150.0,0.00046275,2]
[358542673,1745243445696,-500.0,0.00046301,2]
[358542675,1745243445711,-500.0,0.00046301,2]
[358542678,1745243445725,-500.0,0.00046301,2]
[358542696,1745243445881,-500.0,0.00046301,2]
[358542699,1745243445904,-150.0,0.00046301,2]
[358542701,1745243445914,-514.79282043,0.00046301,2]
[358542703,1745243445923,-2077.0,0.00046301,2]
[358542705,1745243445932,-150.0,0.00046301,2]
[358542707,1745243445941,-556.0,0.00046301,2]
[358542709,1745243445952,-500.0,0.00046301,2]
[358542711,1745243445962,-150.0,0.00046301,2]
[358542713,1745243445971,-500.0,0.00046301,2]
[358542715,1745243445980,-500.0,0.00046301,2]
[358542717,1745243445991,-228.00086056,0.00046301,2]
[358542719,1745243446001,-150.0,0.00046301,2]
[358542721,1745243446010,-200.0,0.00046301,2]
[358542723,1745243446019,-500.0,0.00046301,2]
[358542725,1745243446029,-357.01,0.00046301,2]
[358542727,1745243446038,-421.10858066,0.00046376,5]
[358542729,1745243446048,-150.0,0.00046377,2]
[358542732,1745243446057,-800.44508482,0.0004638,90]
[358542734,1745243446066,-150.0,0.00046389,2]
[358542736,1745243446075,-150.0,0.00046419,2]
[358542738,1745243446084,-151.0,0.00046436,14]
[358542740,1745243446093,-151.0,0.00046436,14]
[358542742,1745243446101,-527.054533,0.00046436,14]
[358542743,1745243446110,-395.635855,0.00046436,14]
[358542745,1745243446119,-395.635855,0.00046436,14]
[358542746,1745243446127,-154.902933,0.00046436,14]
[358542748,1745243446137,-151.0,0.00046436,14]
[358542750,1745243446146,-151.0,0.00046436,14]
[358542752,1745243446155,-151.0,0.00046436,14]
[358542755,1745243446165,-669.43857,0.00046436,14]
[358542756,1745243446174,-669.43857,0.00046436,14]
[358542757,1745243446183,-388.723152,0.00046436,14]
[358542758,1745243446193,-388.723152,0.00046436,14]
[358542759,1745243446202,-1215.042348,0.00046436,14]
[358542761,1745243446211,-1215.042348,0.00046436,14]
[358542763,1745243446220,-151.0,0.00046436,14]
[358542765,1745243446228,-225.6912,0.00046436,14]
[358542767,1745243446237,-225.6912,0.00046436,14]
[358542769,1745243446247,-151.0,0.00046436,14]
[358542771,1745243446255,-151.0,0.00046436,14]
[358542773,1745243446264,-151.0,0.00046436,14]
[358542775,1745243446273,-5800.0,0.00046441,14]
[358542776,1745243446282,-5800.0,0.00046449,14]
[358542778,1745243446291,-5800.0,0.00046458,14]
[358542780,1745243446300,-150.0,0.00046458,2]
[358542782,1745243446309,-5800.0,0.00046466,14]
[358542784,1745243446318,-5800.0,0.00046475,14]
[358542786,1745243446327,-7478.47895921,0.00046475,2]
[358542788,1745243446335,-5800.0,0.00046483,14]
[358542790,1745243446344,-151.0,0.00046483,14]
[358542792,1745243446353,-151.0,0.00046483,14]
[358542794,1745243446362,-301.262144,0.00046483,14]
[358542796,1745243446371,-301.262144,0.00046483,14]
[358542798,1745243446380,-151.0,0.00046483,14]
[358542800,1745243446388,-918.932228,0.00046483,14]
[358542802,1745243446397,-918.932228,0.00046483,14]
[358542804,1745243446406,-5800.0,0.00046492,14]
[358542806,1745243446415,-150.0,0.00046497,2]
[358542807,1745243446424,-5800.0,0.000465,14]
[358542809,1745243446433,-150.0,0.00046516,2]
[358542811,1745243446444,-2972.5156599,0.00046524,7]
[358542813,1745243446455,-488.76101668,0.00046525,18]
[358542815,1745243446465,-513.92847021,0.00046555,120]
[358542817,1745243446474,-6598.3145522,0.00046568,2]
[358542819,1745243446483,-300.0,0.00046574,30]
[358542821,1745243446493,-666.0,0.00046574,30]
[358542823,1745243446502,-500.0,0.00046574,30]
[358542825,1745243446511,-666.0,0.00046574,30]
[358542827,1745243446519,-310.42325894,0.00046574,30]
[358542829,1745243446528,-500.0,0.00046574,30]
[358542831,1745243446537,-689.56366127,0.00046574,30]
[358542833,1745243446546,-500.0,0.00046574,30]
[358542835,1745243446555,-500.0,0.00046574,30]
[358542837,1745243446563,-500.0,0.00046574,30]
[358542839,1745243446572,-1000.0,0.00046574,120]
[358542841,1745243446581,-300.0,0.00046574,30]
[358542843,1745243446590,-666.0,0.00046574,30]
[358542845,1745243446599,-500.0,0.00046574,30]
[358542847,1745243446608,-500.0,0.00046574,30]
[358542849,1745243446616,-500.0,0.00046574,30]
[358542851,1745243446626,-389.71406966,0.00046575,2]
[358542853,1745243446635,-487114.84441797,0.00046575,2]
[358542855,1745243446644,-500.0,0.00046575,2]
[358542857,1745243446653,-500.0,0.00046575,2]
[358542859,1745243446665,-500.0,0.00046575,2]
[358542861,1745243446674,-500.0,0.00046575,2]
[358542863,1745243446682,-2077.0,0.00046575,2]
[358542865,1745243446691,-200.0,0.00046575,2]
[358542866,1745243446700,-556.0,0.00046575,2]
[358542868,1745243446709,-303.85266808,0.00046575,2]
[358542870,1745243446718,-150.0,0.00046575,2]
[358542872,1745243446727,-500.0,0.00046575,2]
[358542874,1745243446736,-500.0,0.00046575,2]
[358542876,1745243446745,-150.0,0.00046575,2]
[358542878,1745243446754,-500.0,0.00046575,2]
[358542880,1745243446763,-500.0,0.00046575,7]
[358542882,1745243446771,-785.58313783,0.00046575,2]
[358542884,1745243446780,-151.0,0.00046575,14]
[358542886,1745243446789,-152.671742,0.00046575,14]
[358542888,1745243446798,-151.0,0.00046575,14]
[358542890,1745243446807,-246.709387,0.00046575,14]
[358542892,1745243446816,-208.956625,0.00046575,14]
[358542894,1745243446825,-151.0,0.00046575,14]
[358542896,1745243446834,-151.0,0.00046575,14]
[358542898,1745243446842,-152.570579,0.00046575,14]
[358542900,1745243446851,-151.0,0.00046575,14]
[358542902,1745243446860,-152.125428,0.00046575,14]
[358542904,1745243446869,-151.0,0.00046575,14]
[358542906,1745243446878,-151.0,0.00046575,14]
[358542908,1745243446887,-157.121257,0.00046575,14]
[358542910,1745243446896,-151.0,0.00046575,14]
[358542912,1745243446905,-154.658589,0.00046575,14]
[358542914,1745243446914,-151.0,0.00046575,14]
[358542916,1745243446922,-151.0,0.00046575,14]
[358542918,1745243446931,-155.061697,0.00046575,14]
[358542920,1745243446940,-500.0,0.00046575,3]
[358542921,1745243446953,-152.58455,0.00046575,14]
[358542923,1745243446962,-151.0,0.00046575,14]
[358542925,1745243446971,-153.256553,0.00046575,14]
[358542927,1745243446980,-164.686311,0.00046575,14]
[358542929,1745243446989,-205.836583,0.00046575,14]
[358542931,1745243446999,-151.0,0.00046575,14]
[358542933,1745243447008,-151.605104,0.00046575,14]
[358542935,1745243447017,-151.0,0.00046575,14]
[358542937,1745243447029,-151.0,0.00046575,14]
[358542939,1745243447038,-186.90035,0.00046575,14]
[358542941,1745243447047,-622.217306,0.00046575,14]
[358542943,1745243447056,-622.217306,0.00046575,14]
[358542945,1745243447065,-622.217306,0.00046575,14]
[358542947,1745243447075,-622.217306,0.00046575,14]
[358542949,1745243447083,-622.217306,0.00046575,14]
[358542951,1745243447093,-622.217306,0.00046575,14]
[358542953,1745243447102,-155.601181,0.00046575,14]
[358542955,1745243447111,-500.0,0.00046575,7]
[358542957,1745243447120,-500.0,0.00046575,7]
[358542959,1745243447129,-504.19144791,0.00046575,7]
[358542961,1745243447138,-517.81460755,0.00046575,7]
[358542963,1745243447147,-161.885356,0.00046575,14]
[358542965,1745243447156,-161.885356,0.00046575,14]
[358542967,1745243447165,-161.885356,0.00046575,14]
[358542969,1745243447174,-161.885356,0.00046575,14]
[358542971,1745243447183,-161.885356,0.00046575,14]
[358542973,1745243447192,-161.885356,0.00046575,14]
[358542975,1745243447202,-161.885356,0.00046575,14]
[358542977,1745243447211,-161.885356,0.00046575,14]
[358542979,1745243447225,-161.885356,0.00046575,14]
[358542981,1745243447235,-161.885356,0.00046575,14]
[358542983,1745243447244,-161.885356,0.00046575,14]
[358542985,1745243447254,-161.885356,0.00046575,14]
[358542987,1745243447263,-161.885356,0.00046575,14]
[358542989,1745243447272,-161.885356,0.00046575,14]
[358542992,1745243447281,-151.0,0.00046575,14]
[358542994,1745243447290,-151.0,0.00046575,14]
[358542996,1745243447299,-151.0,0.00046575,14]
[358542997,1745243447308,-151.0,0.00046575,14]
[358543000,1745243447317,-153.959138,0.00046575,14]
[358543002,1745243447326,-151.875936,0.00046575,14]
[358543004,1745243447335,-151.875936,0.00046575,14]
[358543006,1745243447344,-151.875936,0.00046575,14]
[358543008,1745243447353,-151.875936,0.00046575,14]
[358543010,1745243447362,-151.875936,0.00046575,14]
[358543012,1745243447371,-151.875936,0.00046575,14]
[358543013,1745243447381,-151.875936,0.00046575,14]
[358543015,1745243447390,-151.875936,0.00046575,14]
[358543018,1745243447399,-151.875936,0.00046575,14]
[358543020,1745243447408,-151.875936,0.00046575,14]
[358543022,1745243447417,-151.875936,0.00046575,14]
[358543024,1745243447426,-151.875936,0.00046575,14]
[358543026,1745243447435,-151.875936,0.00046575,14]
[358543028,1745243447443,-162.202351,0.00046575,14]
[358543029,1745243447452,-151.875936,0.00046575,14]
[358543032,1745243447462,-152.573775,0.00046575,14]
[358543033,1745243447471,-151.0,0.00046575,14]
[358543035,1745243447479,-151.0,0.00046575,14]
[358543037,1745243447489,-151.0,0.00046575,14]
[358543040,1745243447498,-151.0,0.00046575,14]
[358543041,1745243447507,-173.176527,0.00046575,14]
[358543044,1745243447516,-500.0,0.00046575,7]
[358543045,1745243447525,-278.78290083,0.00046575,7]
[358543047,1745243447534,-524.84952752,0.00046575,7]
[358543049,1745243447543,-500.0,0.00046575,7]
[358543051,1745243447552,-500.0,0.00046575,7]
[358543054,1745243447561,-493.51758548,0.00046575,7]
[358543056,1745243447570,-500.0,0.00046575,7]
[358543057,1745243447579,-500.0,0.00046575,7]
[358543059,1745243447588,-233.7164552,0.00046575,7]
[358543061,1745243447596,-454.52999799,0.00046575,7]
[358543063,1745243447605,-194.624228,0.00046575,14]
[358543065,1745243447614,-500.0,0.00046575,7]